Cogmind - Beta 14 @@@ ROGUE MODE // 2024.11.17 @ 16:17:48 Player: Fangrelle Result: Destroyed by Y-54 Guardian with Flak Gun Performance ------------- Evolutions (3) 1500 Regions Visited (9) 1800 Robots Destroyed (165) 825 Value Destroyed (5753) 5753 Prototype IDs (34) 680 Alien Tech Used (0) 0 Bonus (2286) 2286 TOTAL SCORE: 12844 Bonus ------- High Alert Combat Kills 1407 Follower Combat Kills 379 Entered Garrisons 200 Aligned with FarCom 300 Cogmind --------- Core Integrity 0/700 Matter 280/300 Energy 94/100 System Corruption 0% Temperature Cool (12) Movement Flying (114) Ox1 Location -7/Garrison Parts ------- > --- POWER (1) -------- (None) > --- PROPULSION (4) --- Cesium-ion Thruster Xenon Bombardment Thruster > --- UTILITY (6) ------ Lightpack 2.0 Improved Signal Interpreter Improved Utility Shielding > --- WEAPON (2) ------- Katana Chainsword > --- INVENTORY (40) --- High-capacity Matter Pod (200) Advanced Weight Redist. System Actuator Array Advanced ECM Suite Improved Propulsion Shielding Improved Weapon Shielding Hardened Heavy Armor Plating Advanced Focal Shield Improved Shock Absorption System Remote Force Field Hacking Suite Hacking Suite Advanced Hacking Suite Advanced Hacking Suite System Shield System Shield System Shield Relay Coupler [NC] (29) Relay Coupler [Swarmer] (37) Relay Coupler [Grunt] Relay Coupler [Grunt] Relay Coupler [Brawler] (28) Relay Coupler [Duelist] (25) System Restoration Module System Restoration Module System Restoration Module High-powered Tractor Beam Trap Extractor (0/4) Recalibrator Recalibrator Improved Datajack Remote Datajack Plasma Cutter Peak State ------------ > --- POWER ------------ Improved Deuterium Engine > --- PROPULSION ------- Improved Flight Unit Cesium-ion Thruster Cooled VTOL Module Cooled VTOL Module > --- UTILITY ---------- Lightpack 2.0 Advanced Weight Redist. System Improved Melee Analysis Suite Improved Light Armor Plating > --- WEAPON ----------- Beamcaster Beamcaster > --- INVENTORY -------- Improved Deuterium Engine Micro Nuclear Core Medium Treads Medium Treads Medium Treads Medium Treads VTOL Module Cooled VTOL Module Cooled Nuclear Pulse Thruster High-capacity Storage Unit High-capacity Matter Pod Machine Analyzer Improved Signal Interpreter Active Sensor Suite Melee Analysis Suite Melee Analysis Suite Melee Analysis Suite Improved Armor Integrity Analyzer Actuator Array Improved Utility Shielding Improved Light Armor Plating Improved Light Armor Plating Improved Light Armor Plating Advanced Focal Shield Improved Shock Absorption System Improved Shield Generator Remote Force Field Hacking Suite Hacking Suite Advanced Hacking Suite System Shield Improved Dynamic Insulation System System Restoration Module Beamcaster Beamcaster Remote Datajack Plasma Cutter Katana [Rating: 87] Favorites ----------- Power Light Nuclear Core Engine Deuterium Engine Power Core Light Nuclear Core Propulsion Advanced Treads Treads Advanced Treads Leg Carbon-fiber Leg Wheel Wheel Flight Unit Cooled VTOL Module Utility Lightpack 2.0 Device Advanced Weight Redist. System Storage Lightpack 2.0 Processor Melee Analysis Suite Hackware Hacking Suite Protection Light Armor Plating Weapon Katana Energy Gun Improved Medium Laser Energy Cannon Advanced Beam Cannon Ballistic Gun Enhanced Autogun Ballistic Cannon Heavy Assault Cannon Launcher Grenade Launcher Special Weapon Plasma Cutter Impact Weapon Heavy Flail Slashing Weapon Katana Special Melee Weapon Datajack Build | -11 -10 -10 -10 -9 -8 -7 -7 -7 -7 ------- Run | Yrd Mat Min Exi Min Mat Fac Was Fac Gar Slots Evolved 6 | . . . . . 4 2 . . . Power . | . . . . . . . . . . Propulsion 2 | . . . . . . 2 . . . Utility 4 | . . . . . 4 . . . . Weapon . | . . . . . . . . . . Parts Attached 163 | 3 12 14 1 2 54 30 6 25 16 Power 19 | . 1 3 . . 6 1 . 5 3 Engine 13 | . 1 2 . . 6 1 . 2 1 Core 6 | . . 1 . . . . . 3 2 Reactor . | . . . . . . . . . . Propulsion 31 | 2 1 3 . . 8 13 . 2 2 Treads 17 | 2 1 1 . . 7 6 . . . Leg 1 | . . 1 . . . . . . . Wheel 2 | . . 1 . . 1 . . . . Hover . | . . . . . . . . . . Flight 11 | . . . . . . 7 . 2 2 Utility 59 | . 3 3 1 . 18 13 1 13 7 Device 13 | . . . . . 3 4 . 6 . Storage 4 | . . 1 1 . 1 . . . 1 Processor 11 | . 1 . . . 5 3 . 1 1 Hackware 1 | . . . . . . . . 1 . Protection 30 | . 2 2 . . 9 6 1 5 5 Artifact . | . . . . . . . . . . Weapon 54 | 1 7 5 . 2 22 3 5 5 4 Energy Gun 14 | . 4 3 . . 3 1 3 . . Energy Cannon 1 | . . . . . 1 . . . . Ballistic Gun 15 | 1 2 . . 2 9 . 1 . . Ballistic Cannon 1 | . . . . . . . 1 . . Launcher 5 | . 1 1 . . 3 . . . . Special Weapon 2 | . . . . . . . . . 2 Impact Weapon 4 | . . . . . 3 . . 1 . Slashing Weapon 10 | . . . . . 2 2 . 4 2 Piercing Weapon . | . . . . . . . . . . Special Melee Weapon 2 | . . 1 . . 1 . . . . Unidentified Prototypes 11 | . 1 . . . 5 3 . 2 . Corrupted Parts 2 | . . 2 . . . . . . . System Corruption 6 | . . 6 . . . . . . . Parts Lost 27 | . 1 5 . . 6 4 . 4 7 Power 7 | . . 1 . . 2 . . 2 2 Propulsion 10 | . . 2 . . 1 3 . . 4 Utility 5 | . . 1 . . 2 . . 1 1 Weapon 5 | . 1 1 . . 1 1 . 1 . Highest Loss Streak 5 | . 1 3 . . 2 1 . 2 5 To Critical Strikes . | . . . . . . . . . . Average Slot Usage (%) 79 | . 79 87 58 84 76 83 74 82 82 Engine 4 | . 6 12 . . 7 7 7 3 . Core 5 | . . . 14 14 1 . . 3 6 Treads 13 | . 20 13 14 14 14 21 . . . Wheel 4 | . . . 14 14 2 . . . . Flight 6 | . . . . . . 7 30 30 29 Device 1 | . . . . . . 2 7 4 1 Storage 9 | . 2 7 13 14 9 7 7 7 7 Processor 7 | . 11 6 . . 9 13 7 10 11 Protection 6 | . 9 14 1 . 11 5 2 5 9 Energy Gun 3 | . 19 16 . . . . 4 1 . Ballistic Gun 8 | . 6 . . 27 13 . . . . Slashing Weapon 4 | . . . . . 2 14 . 12 14 Special Melee Weapon 1 | . . 10 . . . . . . . Peak Build Rating 87 | 6 9 17 16 20 68 81 86 87 85 Average Rating 44 | 5 7 15 13 19 59 74 80 83 83 On Entrance 38 | 6 6 9 13 16 20 65 77 86 85 Naked Turns . | . . . . . . . . . . Heaviest Build 210 | 14 14 41 205 210 40 28 30 28 36 Greatest Support 96 | 40 40 22 10 10 40 96 29 30 28 Greatest Overweight (x) 20 | . . 10 20 20 2 . 1 1 1 Average Overweight (x) 2 | . . 1 15 20 . . . . . Largest Inventory Capacity 40 | 8 8 15 35 35 40 40 40 40 40 Average Capacity 32 | 8 5 10 32 35 39 40 40 40 40 Most Carried 40 | 6 5 11 24 35 40 40 40 40 40 Average Carried 27 | 3 3 6 18 31 31 38 38 38 38 Final Capacity 40 | 8 5 15 35 35 40 40 40 40 40 Final Carried 39 | 1 5 12 24 35 39 39 39 39 34 Class Distribution -------------------- 47% | Hauler-Mutant 20% | Hauler-Sprinter 18% | Mutant 13% | Hauler-Gladiator Dominant Class ---------------- Mutant | -10/Materials Mutant | -10/Mines Hauler-Mutant | -10/Exiles Hauler-Mutant | -9/Mines Hauler-Mutant | -8/Materials Hauler-Gladiator | -7/Factory Hauler-Sprinter | -7/Waste Hauler-Sprinter | -7/Factory Hauler-Sprinter | -7/Garrison Resources | -11 -10 -10 -10 -9 -8 -7 -7 -7 -7 ----------- Run | Yrd Mat Min Exi Min Mat Fac Was Fac Gar Matter Collected 4590 | 200 161 319 70 129 2240 292 798 271 110 Remotely . | . . . . . . . . . . Salvage Created 7425 | . 560 299 . . 2385 1317 1324 894 646 Parts 363 | . 37 10 . . 143 85 5 55 28 Haulers Intercepted 6 | . 1 . . . 2 1 . 2 . Recyclers Shooed 3 | . 2 . . . . 1 . . . Parts Field Recycled . | . . . . . . . . . . Retrieved Matter . | . . . . . . . . . . Parts Self-Destructed . | . . . . . . . . . . Prevented . | . . . . . . . . . . Kills | -11 -10 -10 -10 -9 -8 -7 -7 -7 -7 ------- Run | Yrd Mat Min Exi Min Mat Fac Was Fac Gar Combat Hostiles Destroyed 136 | . 14 15 . . 50 22 6 14 15 Melee 56 | . . . . . 6 22 . 13 15 Guns 49 | . 9 6 . . 34 . . . . Cannons 6 | . . . . . . . 6 . . AOE 24 | . 5 9 . . 9 . . 1 . Classes Destroyed 17 | . 8 2 . . 4 1 1 1 . Worker 8 | . 1 . . . 5 2 . . . Builder 5 | . 1 . . . 1 2 . 1 . Tunneler 2 | . . . . . . . . 2 . Hauler 6 | . 1 . . . 2 1 . 2 . Recycler 4 | . 1 1 . . 1 . . 1 . Operator 5 | . 1 . . . 1 3 . . . Watcher 10 | . 2 . . . 4 2 . 2 . Swarmer 33 | . 6 . . . 13 3 . 6 5 Grunt 53 | . 8 2 . . 19 13 . 3 8 Brawler 4 | . . . . . 3 . . 1 . Duelist 2 | . . . . . 2 . . . . Sentry 19 | . . 2 . . 11 2 . 3 1 Hunter 1 | . . . . . 1 . . . . Programmer 6 | . . . . . . 4 . 1 1 Heavy 1 | . . . . . 1 . . . . Compactor 6 | . . . . . . . 6 . . Assembled 11 | . . 11 . . . . . . . Best Kill Streak 13 | . 5 9 . . 13 5 2 5 4 Combat Bots Only 9 | . 4 9 . . 8 3 2 3 4 Max Kills in Single Turn 4 | . 3 3 . . 4 1 1 1 1 Gunslinging . | . . . . . . . . . . Exploded 3 | . 2 3 . . 2 . . 1 . Melee 1 | . . . . . 1 1 . 1 1 Uniques/NPCs Destroyed . | . . . . . . . . . . Combat | -11 -10 -10 -10 -9 -8 -7 -7 -7 -7 -------- Run | Yrd Mat Min Exi Min Mat Fac Was Fac Gar Hostile Shots Fired 745 | . 42 69 . . 198 169 1 111 155 Missed 243 | . 14 19 . . 52 67 1 40 50 Damage Taken 6676 | . 329 844 . . 2545 1077 . 861 1020 Core 1163 | . 71 95 . . 295 215 . 142 345 Absorbed by Shields 129 | . . . . . 66 . . . 63 Redirected to Shielding 43 | . . . . . . . . 7 36 Regen/Repaired (Parts) 107 | . . . . . . . 4 103 . Core Remaining (%) 59 | 100 . . . 33 46 . . . . Volleys Fired 311 | . 32 37 . . 170 . 71 1 . Largest 2 | . 2 2 . . 2 . 1 1 . Hottest 112 | . 112 112 . . 55 . 60 40 . Shots Fired 514 | . 60 44 . . 338 . 71 1 . Gun 431 | . 58 40 . . 332 . . 1 . Cannon 71 | . . . . . . . 71 . . Launcher 12 | . 2 4 . . 6 . . . . Special . | . . . . . . . . . . Kinetic 422 | . 19 . . . 332 . 71 . . Thermal 80 | . 39 40 . . . . . 1 . Explosive 12 | . 2 4 . . 6 . . . . Electromagnetic . | . . . . . . . . . . Robot Hit Streak 20 | . 5 10 . . 20 . 7 3 . Robot Miss Streak 7 | . 2 2 . . 7 . 2 . . Penetration Max . | . . . . . . . . . . Secondary Targets 8 | . 3 1 . . 4 . . . . Max Gunslinging Chain 1 | . 1 1 . . 1 . . . . Shots Hit Robots 522 | . 35 30 . . 249 72 46 43 47 Core Hits 241 | . 27 29 . . 104 32 11 22 16 Critical Kills 1 | . . . . . 1 . . . . Critical Parts Destroyed 2 | . . . . . 2 . . . . Critical Strikes 36 | . 4 2 . . 3 6 2 4 15 Burn 6 | . 4 2 . . . . . . . Destroy 2 | . . . . . 2 . . . . Blast 2 | . . . . . . . 2 . . Smash 1 | . . . . . 1 . . . . Sever 25 | . . . . . . 6 . 4 15 Melee Attacks 293 | . . . . . 33 103 . 74 83 Impact 7 | . . . . . 6 . . 1 . Slashing 286 | . . . . . 27 103 . 73 83 Piercing . | . . . . . . . . . . Sneak Attacks 28 | . . . . . . 17 . 8 3 Combat Hostiles 9 | . . . . . . 3 . 3 3 Follow-up Attacks 25 | . . . . . 3 7 . 6 9 Damage Inflicted 17586 | . 850 1250 . . 5280 3167 3240 1857 1942 Guns 4767 | . 510 501 . . 3742 . . 14 . Cannons 3240 | . . . . . . . 3240 . . Explosions 1937 | . 331 749 . . 857 . . . . Melee 7633 | . . . . . 681 3167 . 1843 1942 Ramming 9 | . 9 . . . . . . . . Kinetic 7116 | . 134 . . . 3742 . 3240 . . Thermal 1046 | . 531 501 . . . . . 14 . Explosive 1782 | . 176 749 . . 857 . . . . Electromagnetic . | . . . . . . . . . . Impact 151 | . . . . . 151 . . . . Slashing 7482 | . . . . . 530 3167 . 1843 1942 Piercing . | . . . . . . . . . . Highest Corruption 6 | . . 6 6 6 . 3 . 4 . Average Corruption 5 | . . 5 6 6 . 2 . 1 . Corruption Purged 10 | . . . . . . 3 . 7 . Corruption Blocked . | . . . . . . . . . . Effects 165 | . . 41 28 80 . 13 . 3 . Message Errors 33 | . . 6 4 18 . 5 . . . Matter Fused 49 | . . 16 8 23 . 1 . 1 . Heat Flow Errors 27 | . . 7 8 10 . 1 . 1 . Energy Discharges 16 | . . 3 3 8 . 1 . 1 . Parts Fused 3 | . . 1 1 1 . . . . . Data Loss (minor) 22 | . . 4 1 15 . 2 . . . Data Loss (major) 8 | . . 2 2 3 . 1 . . . Misfires 1 | . . 1 . . . . . . . Alerts 5 | . . . 1 2 . 2 . . . Weapon Failures 1 | . . 1 . . . . . . . Overload Shots . | . . . . . . . . . . Overflow Damage 626 | . 71 17 . . 42 246 . 149 101 Projectiles . | . . . . . . . . . . Explosions 89 | . 71 17 . . 1 . . . . Melee 537 | . . . . . 41 246 . 149 101 Knockbacks . | . . . . . . . . . . Impact . | . . . . . . . . . . Kinetic . | . . . . . . . . . . Secondary . | . . . . . . . . . . Self-Inflicted Damage 57 | . 57 . . . . . . . . Shots 1 | . 1 . . . . . . . . Rammed 3 | . 2 . . . 1 . . . . Targets Rammed 3 | . 2 . . . 1 . . . . Kicked . | . . . . . . . . . . Crushed . | . . . . . . . . . . Highest Temperature 538 | . 327 538 246 271 354 256 24 161 4 Average Temperature 83 | . 82 132 97 115 68 108 12 72 3 Received Heat Transfer 1829 | . 93 282 . . 762 249 . 114 329 Effects 5 | . . 4 . . 1 . . . . Shutdowns 1 | . . 1 . . . . . . . Energy Bleed 1 | . . . . . 1 . . . . Interference 1 | . . 1 . . . . . . . Short Circuit 1 | . . 1 . . . . . . . Damage (minor) 1 | . . 1 . . . . . . . Siege Activations . | . . . . . . . . . . Robots Corrupted 1 | . . . . . 1 . . . . Combat Hostiles 1 | . . . . . 1 . . . . Parts Fried 2 | . . . . . 2 . . . . Impact Corruptions 3 | . . . . . 3 . . . . Robots Melted . | . . . . . . . . . . Combat Hostiles . | . . . . . . . . . . Parts Melted 4 | . . 4 . . . . . . . Heat Transferred 2617 | . 1334 1246 . . . . . 37 . Parts Sabotaged . | . . . . . . . . . . Parts Stolen . | . . . . . . . . . . Parts Stripped . | . . . . . . . . . . Power Chain Reactions . | . . . . . . . . . . Alert | -11 -10 -10 -10 -9 -8 -7 -7 -7 -7 ------- Run | Yrd Mat Min Exi Min Mat Fac Was Fac Gar Peak Influence 1376 | . 397 167 . . 1376 907 358 928 1249 Initial 609 | . . 91 . . . 609 317 110 568 Average 388 | . 215 45 . . 666 534 324 663 884 Maximum Alert Level 4 | . 1 . . . 4 3 1 3 4 Low Security (%) 43 | 100 22 100 . 100 30 . 13 8 . Level 1 12 | . 77 . . . 6 8 86 2 . Level 2 19 | . . . . . 3 84 . 36 17 Level 3 18 | . . . . . 41 6 . 52 58 Level 4 5 | . . . . . 18 . . . 23 Level 5 . | . . . . . . . . . . High Security . | . . . . . . . . . . Max Security . | . . . . . . . . . . Sterilizations 1 | . . . . . 1 . . . . Squads Dispatched 33 | . 4 . . . 11 10 . 8 . Investigation 7 | . 3 . . . 1 1 . 2 . Extermination 5 | . . . . . . 4 . 1 . Reinforcement 13 | . 1 . . . 3 5 . 4 . Assault 2 | . . . . . 1 . . 1 . Garrison 6 | . . . . . 6 . . . . Intercept . | . . . . . . . . . . Searches Triggered . | . . . . . . . . . . Construction Impeded 2 | . . . . . 1 . . 1 . Haulers Reinforced 3 | . . . . . . 2 . 1 . Active Scanning Responses . | . . . . . . . . . . Cargo Convoy Interrupts . | . . . . . . . . . . Stealth | -11 -10 -10 -10 -9 -8 -7 -7 -7 -7 --------- Run | Yrd Mat Min Exi Min Mat Fac Was Fac Gar Distress Signals 7 | . . . . . 6 . . 1 . Communications Jammed . | . . . . . . . . . . Distress Signals . | . . . . . . . . . . Times Spotted 212 | . 21 27 . . 66 37 6 30 25 Peak Tracking Total 15 | . 4 15 . . 5 4 4 6 4 Tactical Retreats 24 | . . 1 . . 7 6 . 2 8 Traps | -11 -10 -10 -10 -9 -8 -7 -7 -7 -7 ------- Run | Yrd Mat Min Exi Min Mat Fac Was Fac Gar Traps Triggered 12 | . 3 . . . 2 1 . 1 5 Indirectly . | . . . . . . . . . . Trap Hack Attempts . | . . . . . . . . . . Triggered . | . . . . . . . . . . Disarmed . | . . . . . . . . . . Reprogrammed . | . . . . . . . . . . Reused 2 | . . . . . 2 . . . . Traps Extracted . | . . . . . . . . . . Installed 4 | . . . . . 4 . . . . Triggered 2 | . . . . . 2 . . . . Most Traps Carried 4 | . . . . 4 4 . . . . Objects Rigged 4 | . . . . . 4 . . . . Exploded 1 | . . . . . 1 . . . . Machines | -11 -10 -10 -10 -9 -8 -7 -7 -7 -7 ---------- Run | Yrd Mat Min Exi Min Mat Fac Was Fac Gar Machines Disabled 12 | . 3 1 . . 4 . . . 4 Max in Single Turn 2 | . 2 1 . . 2 . . . 1 Garrison Relay 2 | . . . . . . . . . 2 Machines Repaired . | . . . . . . . . . . Machines Dismantled 2 | . . . . . . . . . 2 Machines Sabotaged . | . . . . . . . . . . Overloaded Fab Kills . | . . . . . . . . . . Hacking | -11 -10 -10 -10 -9 -8 -7 -7 -7 -7 --------- Run | Yrd Mat Min Exi Min Mat Fac Was Fac Gar Machines Accessed 47 | . 8 1 2 . 11 5 . 20 . Terminals 33 | . 6 . . . 10 2 . 15 . Fabricators 3 | . . . . . . 1 . 2 . Repair Stations 1 | . . . . . . 1 . . . Recycling Units 5 | . 2 . . . . 1 . 2 . Scanalyzers 1 | . . . . . 1 . . . . Garrison Access 1 | . . . . . . . . 1 . Total Hacks 138 | . 26 1 5 . 51 10 . 45 . Successful 76 | . 12 1 5 . 30 5 . 23 . Failed 61 | . 14 . . . 20 5 . 22 . Catastrophic 3 | . . . . . . 1 . 2 . Database Lockouts 1 | . . . . . 1 . . . . Manual 106 | . 22 . 1 . 47 3 . 33 . Terminals 107 | . 20 . . . 47 4 . 36 . Fabricators 5 | . . . . . . 3 . 2 . Repair Stations 1 | . . . . . . 1 . . . Recycling Units 14 | . 6 . . . . 2 . 6 . Scanalyzers 4 | . . . . . 4 . . . . Garrison Access 1 | . . . . . . . . 1 . Terminal Hacks 15 | . 1 1 5 . 4 . . 4 . Record 4 | . . . 4 . . . . . . Robot Analysis 2 | . 1 . . . 1 . . . . Open Door 1 | . . 1 . . . . . . . Branch Access Points 2 | . . . . . 1 . . 1 . Terminal Index 2 | . . . . . 1 . . 1 . Alert Level 3 | . . . . . 1 . . 2 . Derelict Proto ID Bank 1 | . . . 1 . . . . . . Fabricator Hacks 3 | . . . . . . 2 . 1 . Load Schematic 1 | . . . . . . 1 . . . Build 2 | . . . . . . 1 . 1 . Repair Station Hacks . | . . . . . . . . . . Recycling Unit Hacks 6 | . 3 . . . . 1 . 2 . Report Inventory 4 | . 2 . . . . 1 . 1 . Retrieve Components 2 | . 1 . . . . . . 1 . Scanalyzer 4 | . . . . . 4 . . . . Insert Component 1 | . . . . . 1 . . . . Analyze 3 | . . . . . 3 . . . . Garrison Access Hacks 1 | . . . . . . . . 1 . Unlock Access 1 | . . . . . . . . 1 . Unauthorized Hacks 47 | . 8 . . . 22 2 . 15 . Terminals 43 | . 6 . . . 22 2 . 13 . Track 1 | . . . . . 1 . . . . Assimilate 8 | . 1 . . . 4 1 . 2 . Botnet 19 | . 4 . . . 8 1 . 6 . Detonate 1 | . . . . . 1 . . . . Disrupt 2 | . . . . . 2 . . . . Operators 3 | . . . . . 3 . . . . Skim 9 | . 1 . . . 3 . . 5 . Fabricators . | . . . . . . . . . . Repair Stations . | . . . . . . . . . . Recycling Units 4 | . 2 . . . . . . 2 . Tunnel 4 | . 2 . . . . . . 2 . Scanalyzers . | . . . . . . . . . . Garrison Access . | . . . . . . . . . . Data Cores Recovered 1 | . . . . . . 1 . . . Used . | . . . . . . . . . . Hacking Detections 41 | . 7 . . . 11 5 . 18 . Full Trace Events 4 | . 2 . . . 1 1 . . . Feedback Events . | . . . . . . . . . . Feedback Blocked . | . . . . . . . . . . Robot Schematics Acquired . | . . . . . . . . . . Robots Built . | . . . . . . . . . . Authchips . | . . . . . . . . . . Time . | . . . . . . . . . . Total Robot Build Rating . | . . . . . . . . . . Part Schematics Acquired 1 | . . . . . 1 . . . . Parts Built 1 | . . . . . . . . 1 . Authchips . | . . . . . . . . . . Time 222 | . . . . . . 116 . 106 . Total Part Build Rating 6 | . . . . . . . . 6 . Parts Repaired . | . . . . . . . . . . Time . | . . . . . . . . . . Parts Recycled . | . . . . . . . . . . Recycled Matter . | . . . . . . . . . . Retrieved Matter . | . . . . . . . . . . Retrieved Components 11 | . 10 . . . . . . 1 . Parts Scanalyzed 1 | . . . . . 1 . . . . Part Schematics Acquired 1 | . . . . . 1 . . . . Parts Damaged . | . . . . . . . . . . Bothacking | -11 -10 -10 -10 -9 -8 -7 -7 -7 -7 ------------ Run | Yrd Mat Min Exi Min Mat Fac Was Fac Gar Used RIF Installer . | . . . . . . . . . . Robots Hacked . | . . . . . . . . . . Non-combat . | . . . . . . . . . . Combat . | . . . . . . . . . . Robot Hacks Applied . | . . . . . . . . . . Relay Couplers Released 7 | . . . . . . . . . 7 Machine Destruction 7 | . . . . . . . . . 7 Fabnet Peak Effective % . | . . . . . . . . . . Robots Rewired . | . . . . . . . . . . Allies Hacked . | . . . . . . . . . . Hacks Repelled . | . . . . . . . . . . Allies | -11 -10 -10 -10 -9 -8 -7 -7 -7 -7 -------- Run | Yrd Mat Min Exi Min Mat Fac Was Fac Gar Total Allies 23 | . . . . 3 . . 19 1 . Largest Group 20 | . . . . 3 3 . 19 20 . Highest-Rated Group 501 | . . . . 40 40 . 475 501 . Highest-Rated Ally 35 | . . . . 16 16 . 35 35 . Total Orders 1 | . . . . . 1 . . . . STAY 1 | . . . . . 1 . . . . Ally Attacks 123 | . . . . . . . . 123 . Total Damage 1985 | . . . . . . . . 1985 . Kills 16 | . . . . . . . . 16 . Allies Corrupted . | . . . . . . . . . . Allies Melted . | . . . . . . . . . . Intel | -11 -10 -10 -10 -9 -8 -7 -7 -7 -7 ------- Run | Yrd Mat Min Exi Min Mat Fac Was Fac Gar Robot Analysis Total 2 | . 1 . . . 1 . . . . Derelict Logs Recovered 2 | . . 1 . 1 . . . . . Drone Launches . | . . . . . . . . . . Drone Recoveries . | . . . . . . . . . . Exploration | -11 -10 -10 -10 -9 -8 -7 -7 -7 -7 ------------- Run | Yrd Mat Min Exi Min Mat Fac Was Fac Gar Turns Passed 14003 | 7 1005 1431 1451 2785 2803 2194 460 1134 733 Spaces Moved 8487 | 1 549 617 467 718 1388 1615 638 1943 551 Core 18 | . . 18 . . . . . . . Treads 2657 | 1 549 424 . . 879 804 . . . Legs 116 | . . 116 . . . . . . . Wheels 1753 | . . 59 467 718 509 . . . . Hover . | . . . . . . . . . . Flight 3943 | . . . . . . 811 638 1943 551 Fastest Speed 27 | 160 160 125 80 380 110 27 27 27 27 Average Speed 127 | 160 160 197 306 380 150 96 27 28 27 Slowest Speed 550 | 160 160 550 380 380 240 170 97 94 106 Overloaded Moves . | . . . . . . . . . . Propulsion Burnouts . | . . . . . . . . . . Robots Hopped 16 | . . . . . . 3 . 13 . Cave-ins Triggered . | . . . . . . . . . . Exploration Rate (%) 65 | 1 77 98 70 100 90 34 96 41 50 Regions Visited 9 Branch Regions 3 Pre-discovered Areas 5 | . 2 . 1 . . . . 2 . Known Exits Taken 2 | . . . . . 1 . . 1 . Unknown Exits Taken 5 | 1 1 1 1 1 . . . . . Scrap Searched 4 | . . 1 . 3 . . . . . Spaces Dug 37 | . . . . . 3 15 . 13 6 Terrain Destroyed 190 | . 26 34 . . 85 15 11 13 6 Melee 37 | . . . . . 3 15 . 13 6 Projectile 11 | . . . . . . . 11 . . AOE 142 | . 26 34 . . 82 . . . . Terrain Rammed . | . . . . . . . . . . Walls Destroyed . | . . . . . . . . . . Machines Disabled . | . . . . . . . . . . Actions | -11 -10 -10 -10 -9 -8 -7 -7 -7 -7 --------- Run | Yrd Mat Min Exi Min Mat Fac Was Fac Gar Total 10890 | 8 614 785 488 776 1851 2122 820 2416 1010 Wait 1219 | . 5 100 . 46 79 305 81 336 267 Move 8450 | . 548 616 466 717 1387 1609 637 1919 551 Hop 13 | . . . . . . 3 . 10 . Pick Up 206 | . 8 9 19 11 62 45 12 31 9 Fast Attach 57 | . 9 7 1 2 19 5 3 8 3 Attach 55 | 2 1 2 . . 17 15 3 8 7 Detach 25 | . 1 3 . . 10 4 3 2 2 Swap 52 | 1 2 5 . . 19 10 . 9 6 Drop 157 | 5 6 6 2 . 54 36 10 28 10 Fire 311 | . 32 37 . . 170 . 71 1 . Melee 251 | . . . . . 29 90 . 64 68 Ram . | . . . . . . . . . . Kick . | . . . . . . . . . . Crush 3 | . 2 . . . 1 . . . . Escape Stasis 78 | . . . . . . . . . 78 Rewire . | . . . . . . . . . . Trap 4 | . . . . . 4 . . . . Miscellaneous 9 | . . . . . . . . . 9 Route ------- -11/Scrapyard -10/Materials (discovered 3 exits: [*Mat x2] / *Min) -10/Mines (discovered 3 exits: [*Mat x2] / *Exi) -10/Exiles -9/Mines (discovered 2 exits: *Mat x2) -8/Materials (discovered 2 exits: *Fac x2) -7/Factory (discovered 2 exits: *Fac / *Low) -7/Waste -7/Factory (discovered 5 exits: *Fac x2 / *Low x2 / Gar) -7/Garrison (discovered 1 exit: *Fac) History --------- Turn | Location | Event 8 | -11/Scrapyard | Discovered new exit (range 0) 8 | -11/Scrapyard | Entered Materials 300 | -10/Materials | Build established: Mutant 306 | -10/Materials | Discovered new exit (range 6) 520 | -10/Materials | Discovered new exit (range 8) 866 | -10/Materials | Discovered new exit (range 15) 1013 | -10/Materials | Entered Mines 1066 | -10/Mines | Met a Derelict bent on vengeance 1133 | -10/Mines | Received a Rocket Launcher from a helpful Derelict 1173 | -10/Mines | Assembled infested the area 1201 | -10/Mines | Met a Derelict who couldn't figure out how to use a Trap Extractor 1217 | -10/Mines | Destroyed 9 combat bots 1231 | -10/Mines | Lost 3 parts (1n1u1w) 1521 | -10/Mines | Discovered new exit (range 10) 1634 | -10/Mines | Discovered new exit (range 15) 2274 | -10/Mines | Core integrity fell below 50% 2436 | -10/Mines | Deemed a non-threat by the Exiles lab entrance 2437 | -10/Mines | Discovered new exit (range 5) 2444 | -10/Mines | Entered Exiles 2479 | -10/Exiles | Met 8R-AWN 2500 | -10/Exiles | Met EX-HEX 2888 | -10/Exiles | Build established: Hauler-Mutant 2934 | -10/Exiles | Met EX-DEC 2999 | -10/Exiles | Learned location of Zion (-6) 3358 | -10/Exiles | Met EX-BIN 3411 | -10/Exiles | Aligned with FarCom system 3415 | -10/Exiles | Given EX-Vault access code 3503 | -10/Exiles | Opened EX-Vault 3533 | -10/Exiles | Found Lightpack 2.0 3606 | -10/Exiles | Warned to stay clear of 0b10 Research branches 3857 | -10/Exiles | Discovered new exit (range 11) 3895 | -10/Exiles | Left Exiles lab with Lightpack 2.0 3895 | -10/Exiles | Entered Mines 4505 | -9/Mines | Learned Materials emergency access door positions 4953 | -9/Mines | Found a hidden stash of uninstalled traps 5625 | -9/Mines | Discovered new exit (range 15) 6452 | -9/Mines | Discovered new exit (range 8) 6482 | -9/Mines | Assisted by bots powering up and referring to "LRC-V3" 6680 | -9/Mines | Entered Materials 6680 | -8/Materials | Accompanied by 3 allies 6680 | -8/Materials | Evolved 4 slots: Utility x4 7136 | -8/Materials | Discovered new exit (range 10) 7499 | -8/Materials | Garrison activated, responded to threat 7757 | -8/Materials | Destroyed 7 combat bots 7817 | -8/Materials | Garrison activated, responded to threat 7849 | -8/Materials | Destroyed 8 combat bots 8272 | -8/Materials | Central database locked down 8280 | -8/Materials | First assault squad dispatched 9232 | -8/Materials | Found Prototype Device 9338 | -8/Materials | Core integrity fell below 50% 9415 | -8/Materials | Sterilization system engaged 9415 | -8/Materials | Non-combat units ordered to evacuate 9434 | -8/Materials | Discovered new exit (range 16) 9462 | -8/Materials | Build established: Hauler-Gladiator 9481 | -8/Materials | Identified exit to Factory 9483 | -8/Materials | Entered Factory 9483 | -7/Factory | Evolved 2 slots: Propulsion x2 10989 | -7/Factory | Discovered new exit (range 6) 11349 | -7/Factory | Build established: Hauler-Sprinter 11575 | -7/Factory | Discovered new exit (range 8) 11677 | -7/Factory | Sucked down chute 11677 | -7/Factory | Entered Waste 11695 | -7/Waste | Spotted C-40 Crusher 11695 | -7/Waste | Spotted C-40 Crusher 11732 | -7/Waste | Spotted C-40 Crusher 11757 | -7/Waste | Spotted C-40 Crusher 11772 | -7/Waste | Destroyed C-40 Crusher 11817 | -7/Waste | Destroyed C-40 Crusher 11845 | -7/Waste | Destroyed C-40 Crusher 11854 | -7/Waste | Spotted C-40 Crusher 11892 | -7/Waste | Spotted C-40 Crusher 11907 | -7/Waste | Destroyed C-40 Crusher 11923 | -7/Waste | Destroyed C-40 Crusher 11956 | -7/Waste | Destroyed C-40 Crusher 11967 | -7/Waste | Warlord forces began an assault 12042 | -7/Waste | Discovered new exit (range 13) 12137 | -7/Waste | Entered Factory 12137 | -7/Factory | Accompanied by 19 allies 12163 | -7/Factory | Discovered new exit (range 12) 12231 | -7/Factory | Discovered new exit (range 13) 12259 | -7/Factory | Lost 10 allies 12286 | -7/Factory | Identified exit to Lower Caves 12478 | -7/Factory | Discovered exit to Lower Caves (range 9) 12712 | -7/Factory | Core integrity fell below 50% 12937 | -7/Factory | First assault squad dispatched 12990 | -7/Factory | Learned Extension emergency access door positions 13019 | -7/Factory | Fabricated Adv. Hacking Suite? 13038 | -7/Factory | Learned Hub_04(d) garrison access intel 13074 | -7/Factory | Learned location of 1 exit from Proximity Caves 13102 | -7/Factory | Identified exit to Factory 13118 | -7/Factory | Learned location of 2 exits from Upper Caves 13125 | -7/Factory | Learned 4 Lower Caves zone layouts 13126 | -7/Factory | Learned 4 Lower Caves zone layouts 13135 | -7/Factory | Learned 4 Proximity Caves zone layouts 13152 | -7/Factory | Learned Extension security intel 13163 | -7/Factory | Identified exit to Garrison 13179 | -7/Factory | Loaded intel: 6 repair station locations 13271 | -7/Factory | Entered Garrison 13357 | -7/Garrison | Triggered checkpoint 13401 | -7/Garrison | Garrison Relay disabled 13424 | -7/Garrison | Garrison Relay disabled 13807 | -7/Garrison | Triggered checkpoint 13876 | -7/Garrison | Core integrity fell below 20% 13957 | -7/Garrison | Discovered exit to Factory (range 10) 13960 | -7/Garrison | Triggered checkpoint 14004 | -7/Garrison | Destroyed by Y-54 Guardian with Flak Gun Last Messages --------------- 13963_ Field strength at 73. 13965_ Dropped Imp. Light Armor Plating. 13966_ Field strength at 49. 13967_ Field strength at 44. 13968_ Field strength at 26. 13969_ Field strength at 21. 13970_ Field strength at 16. 13971_ Stasis field depleted. 13977_ Cld. VTOL Module destroyed. 13977_ Imp. Flight Unit destroyed. 13977_ Cld. VTOL Module destroyed. Melee Analysis Suite swallowed by quantum anomaly within Lightpack 2.0. 13988_ Katana follow-up attack on Y-54 Guardian. 13988_ Y-54 Guardian Lgt. Treads severed. 13991_ Mic. Nuclear Core destroyed. 13994_ Destroyed Imp. Heat Sink. 13997_ Y-54 Guardian Imp. Deuterium Engine severed. 14000_ Katana follow-up attack on Y-54 Guardian. 14000_ Y-54 Guardian Imp. Light Armor Plating severed. 14004_ Cld. Nuclear Pulse Thruster destroyed. Map ----- +----------------------------------------------------+ | | | | | | | | | | | | | | | | | | | ????????????????????????????????????????????????? | | ????????????????????????????????????????????????? | | ????????????????????????????????????????????????? | | ????????????????????????????????????????????????? | | ????????????????????????????????????????????????? | | ????????????????????????????????????????????????? | | ????????????????????????????????????????????????? | | ????????????????????????????????????????????????? | | ????????????????????????????????????????????????? | | ????????????????????????????????????????????????? | | ?????????#####??????????????????????????????????? | | ?????????# #??????????????????????????????????? | | ?????????# < #??????????????????????????????????? | | ?????????# #??????????????????????????????????? | | ?????????# #???????#####??????????????????????? | | ?????????# #???????# #??????????????????????? | | ?????????# #??###### @##### #??????????????? | | ?????????# #??# =*^Y #????????????? | | ?????????# #??# ! #????????????? | | ?????????# #??# #################????????????? | | ?????????# #??# #????????????????????????????? | | ?????????# #### #################????????????? | | ?????????# #????????????? | | ?????????# #????????????? | | ?????????# #????????????? | | ?????????####################### #????????????? | | ???????????????????????????????# #????????????? | | ???????????????????????????????# #????????????? | | ???????????????????????????????# #????????????? | | ???????????????????????????????# #????????????? | | ???????????????????????????????# #????????????? | | ???????????????????????????????# #????????????? | | ???????????????????????????????# #????????????? | | ???????????????????????????????# #????????????? | | ???????????????????????????????# #????????????? | | ???????????????????????????????# #????????????? | | ???????????????????????????????# #????????????? | | ???????????????????????????????# #????????????? | | ???????????????????????????????# #????????????? | | ???????????????????????????????# #????????????? | | ???????????????????????????????#^^ #????????????? | +----------------------------------------------------+ Best States ------------- Heat Dissipation 34 Energy Generation 18 Energy Capacity 290 Matter Stores 300 Matter Capacity 300 Sight Range 16 Terrain Scan Density 10 Additional Mass Support 9 Armor Coverage 600 Resistance: EM 15 Utility Shielding 66 Evasion (%) 72 Targeting Accuracy 6 Melee Accuracy 11 Recoil Reduction 4 Offensive Hacking 10 Item Schematics ----------------- Enh. Autogun | -8/Materials | Scanalyzed Robot Schematics ------------------ None Fabricated ------------ Adv. Hacking Suite | x1 | -7/Factory | Preloaded Alien Tech Used ----------------- None Achievements -------------- None Challenges ------------ None Game ------ Seed AlloyPowerDisintegrator Manual? 0 Play Time 01:58:29 Cumulative 103.8 hours Start 2024.11.17 @ 14:14:28 End 2024.11.17 @ 16:17:48 Sessions 1 Manual Loads 0 Difficulty Rogue Special Mode None Game No. 184 Rogue 184 Adventurer 0 Explorer 0 Win Type - Total 0 Types 0/0/0/0/0/0/0/0/0 Lore% 42 Gallery% 39 Achievement% 35 Wizard Run 0 Options --------- Layout 0 ASCII 0 Keyboard 0 Movement Mouse Keybinds 0 Fullscreen 1 Font 24/Cog Map View 91x25 Zoom Use 89% Tactical HUD 1 Map Filters NONE Filters NONE Steam 1 RUN: 20487481-761a-453f-ae67-74121bdfb353